fUSD/lending_fUSD_20260311
["ID","MTS","AMOUNT","RATE_DAILY","PERIOD"]
[408224755,1773263454727,-500.0,0.00035616,7]
[408224756,1773263454737,-500.0,0.00035616,7]
[408224757,1773263454746,-500.0,0.00035616,7]
[408224758,1773263454756,-500.0,0.00035616,7]
[408224759,1773263454765,-500.0,0.00035616,7]
[408224760,1773263454775,-500.0,0.00035616,7]
[408224761,1773263454784,-504.01557377,0.00035616,7]
[408224762,1773263454794,-520.47957649,0.00035616,7]
[408224763,1773263454804,-520.47957649,0.00035616,7]
[408224764,1773263454814,-520.47957649,0.00035616,7]
[408224765,1773263454823,-520.47957649,0.00035616,7]
[408224766,1773263454833,-520.47957649,0.00035616,7]
[408224767,1773263454843,-520.47957649,0.00035616,7]
[408224768,1773263454852,-520.47957649,0.00035616,7]
[408224769,1773263454862,-520.47957649,0.00035616,7]
[408224770,1773263454871,-520.47957649,0.00035616,7]
[408224771,1773263454881,-520.47957649,0.00035616,7]
[408224772,1773263454891,-520.47957649,0.00035616,7]
[408224773,1773263454901,-770.64556653,0.00035616,7]
[408224774,1773263454912,-509.0,0.000359,19]
[408224775,1773263454922,-688.0,0.00036111,30]
[408224776,1773263454932,-1934.60262125,0.000362,2]
[408224777,1773263454941,-150.0,0.0003643,2]
[408224778,1773263454951,-1500.0,0.0003655,5]
[408224779,1773263454961,-161.0,0.00036556,11]
[408224780,1773263454970,-1407.389,0.00037023,2]
[408224781,1773263454980,-1342.0,0.00037023,2]
[408224782,1773263454989,-150.0,0.00037023,2]
[408224783,1773263454999,-2461.0,0.00037023,2]
[408224784,1773263455010,-3751.0,0.00037023,2]
[408224785,1773263455020,-745.65223616,0.00037337,2]
[408224786,1773263455030,-848.0,0.00037516,11]
[408224787,1773263455039,-379.61993024,0.00037565,52]
[408224788,1773263455049,-396.35421207,0.00037667,52]
[408224789,1773263455059,-243.87,0.000377,14]
[408224790,1773263455069,-151.0,0.00037744,5]
[408224791,1773263455078,-1500.0,0.0003792,5]
[408224792,1773263455088,-526.0,0.00038,5]
[408224793,1773263455098,-981.71,0.00038,14]
[408224794,1773263455108,-213.31,0.00038034,30]
[408224795,1773263455118,-930.48,0.00038034,30]
[408224796,1773263455128,-985.05446061,0.00038082,30]
[408224797,1773263455138,-985.05446061,0.00038219,30]
[408224798,1773263455148,-150.0,0.00038252,2]
[408224799,1773263455157,-180.0,0.00038266,19]
[408224800,1773263455171,-1181.27,0.000383,30]
[408224801,1773263455180,-1046.35001679,0.00038356,5]
[408224802,1773263455191,-152.0,0.00038375,3]
[408224803,1773263455201,-325.93586332,0.0003838,5]
[408224804,1773263455211,-985.05446061,0.00038384,30]
[408224805,1773263455222,-151.0,0.00038492,120]
[408224806,1773263455233,-151.0,0.00038492,120]
[408224807,1773263455245,-985.05446061,0.00038548,30]
[408224808,1773263455254,-1044.5,0.00038555,7]
[408224809,1773263455264,-25000.0,0.00038611,10]
[408224810,1773263455273,-25000.0,0.00038683,15]
[408224811,1773263455283,-985.05446061,0.00038685,30]
[408224812,1773263455293,-25000.0,0.00038691,15]
[408224813,1773263455302,-285.595006,0.00038692,120]
[408224814,1773263455312,-285.595006,0.00038692,120]
[408224815,1773263455322,-285.595006,0.00038692,120]
[408224816,1773263455332,-285.595006,0.00038692,120]
[408224817,1773263455342,-151.0,0.000387,120]
[408224818,1773263455352,-25000.0,0.000387,15]
[408224819,1773263455362,-25000.0,0.00038709,15]
[408224820,1773263455372,-985.05446061,0.00038849,30]
[408224821,1773263455381,-2588.298,0.00038942,53]
[408224822,1773263455391,-170.799,0.00038942,53]
[408224823,1773263455400,-985.05446061,0.00038986,30]
[408224824,1773263455410,-509.0,0.0003905,22]
[408224825,1773263455421,-2807.0,0.00039121,11]
[408224826,1773263455431,-1044.5,0.00039129,7]
[408224827,1773263455441,-985.05446061,0.00039151,30]
[408224828,1773263455451,-2177.26,0.00039241,2]
[408224829,1773263455461,-2807.0,0.00039269,11]
[408224830,1773263455471,-985.05446061,0.00039315,30]
[408224831,1773263455481,-985.05446061,0.00039452,30]
[408224832,1773263455491,-985.05446061,0.00039616,30]
[408224833,1773263455501,-1044.5,0.00039702,7]
[408224834,1773263455511,-985.05446061,0.00039753,30]
[408224835,1773263455521,-243.87,0.000398,14]
[408224836,1773263455530,-154.0,0.0004,120]
[408224837,1773263455541,-155.0,0.0004,120]
[408224838,1773263455551,-25000.0,0.0004,15]
[408224839,1773263455560,-21987.31945277,0.0004,15]
[408224840,1773263455570,-160.0,0.0004,30]
[408224841,1773263455579,-25000.0,0.0004,15]
[408224842,1773263455589,-25000.0,0.0004,15]
[408224843,1773263455600,-1181.27,0.0004,30]
[408224844,1773263455610,-2461.0,0.00040023,2]
[408224845,1773263455620,-3573.026,0.00040023,2]
[408224846,1773263455630,-773.2413689,0.00040076,2]
[408224847,1773263455640,-607.94906358,0.00040083,96]
[408224848,1773263455650,-150.0,0.00040165,2]
[408224849,1773263455660,-5800.0,0.00040165,14]
[408224850,1773263455670,-162.0,0.00040173,11]
[408224851,1773263455680,-151.0,0.0004018,7]
[408224852,1773263455690,-1044.5,0.00040276,7]
[408224853,1773263455699,-5800.0,0.00040424,14]
[408224854,1773263455709,-5800.0,0.00040592,14]
[408224855,1773263455718,-5800.0,0.000406,14]
[408224856,1773263455728,-981.71,0.000406,14]
[408224857,1773263455738,-1044.5,0.00040849,30]
[408224858,1773263455748,-151.0,0.00040997,14]
[408224859,1773263455758,-151.0,0.00040997,14]
[408224860,1773263455768,-56969.63676006,0.00041,5]
[408224861,1773263455777,-508.01012091,0.00041068,120]
[408224862,1773263455787,-217.71862325,0.00041068,120]
[408224863,1773263455797,-311.05050218,0.00041068,22]
[408224864,1773263455806,-2672.0,0.00041143,11]
[408224865,1773263455816,-2230.96039504,0.0004123,5]
[408224866,1773263455826,-243.87,0.000413,14]
[408224867,1773263455835,-345.0,0.000413,60]
[408224868,1773263455845,-1044.5,0.00041423,30]
[408224869,1773263455855,-1705.29776055,0.00041461,2]
[408224870,1773263455865,-155.0,0.000415,120]
[408224871,1773263455874,-154.0,0.000417,120]
[408224872,1773263455884,-88734.47680562,0.00041781,7]
[408224873,1773263455893,-848.0,0.00041783,11]
[408224874,1773263455903,-160.0,0.000418,2]
[408224875,1773263455913,-160.0,0.00041837,11]
[408224876,1773263455923,-1044.5,0.00041997,30]
[408224877,1773263455933,-269.45593814,0.00042,120]
[408224878,1773263455943,-175.52540433,0.00042,10]
[408224879,1773263455952,-400.0,0.00042076,73]
[408224880,1773263455962,-150.0,0.00042173,120]
[408224881,1773263455972,-509.0,0.000422,25]
[408224882,1773263455981,-1181.27,0.000422,30]
[408224883,1773263455991,-169.6147546,0.000424,2]
[408224884,1773263456000,-213.31,0.00042546,120]
[408224885,1773263456010,-697.86,0.00042546,120]
[408224886,1773263456019,-1044.5,0.0004257,30]
[408224887,1773263456029,-151.0,0.00042617,30]
[408224888,1773263456038,-200.614972,0.000427,23]
[408224889,1773263456048,-161.0,0.00042732,16]
[408224890,1773263456057,-4000.0,0.0004274,14]
[408224891,1773263456067,-801.85129955,0.00042815,2]
[408224892,1773263456077,-200.0,0.0004292,120]
[408224893,1773263456086,-155.0,0.00043,120]
[408224894,1773263456096,-1449.61352068,0.00043,30]
[408224895,1773263456105,-2461.0,0.00043023,2]
[408224896,1773263456115,-243.87,0.000431,14]
[408224897,1773263456124,-1044.5,0.00043144,30]
[408224898,1773263456134,-397.880876,0.00043144,120]
[408224899,1773263456144,-151.0,0.00043144,7]
[408224900,1773263456154,-397.880876,0.00043144,120]
[408224901,1773263456165,-151.0,0.00043144,7]
[408224902,1773263456176,-397.880876,0.00043144,120]
[408224903,1773263456185,-151.0,0.00043144,7]
[408224904,1773263456194,-397.880871,0.00043144,120]
[408224905,1773263456204,-981.71,0.000433,14]
[408224906,1773263456214,-224.84507258,0.0004337,30]
[408224907,1773263456223,-161.98181319,0.00043383,120]
[408224908,1773263456233,-321.9722186,0.00043383,120]
[408224909,1773263456243,-154.0,0.000434,120]
[408224910,1773263456253,-1380.03,0.000434,90]
[408224911,1773263456262,-423.92,0.000434,90]
[408224912,1773263456271,-163.13,0.000434,90]
[408224913,1773263456281,-151.0,0.000434,120]
[408224914,1773263456291,-151.0,0.000434,120]
[408224915,1773263456300,-151.0,0.000434,120]
[408224916,1773263456309,-151.0,0.000434,120]
[408224917,1773263456319,-151.0,0.000434,120]
[408224918,1773263456329,-150.0,0.000435,120]
[408224919,1773263456338,-3100.0,0.000436,20]
[408224920,1773263456348,-387.34942094,0.00043682,120]
[408224921,1773263456357,-187.01,0.000437,14]
[408224922,1773263456367,-1044.5,0.00043717,30]
[408224923,1773263456376,-152.0,0.00043766,4]
[408224924,1773263456386,-176.8920594,0.00043783,60]
[408224925,1773263456396,-786.0,0.00043836,120]
[408224926,1773263456406,-23659.12069611,0.000439,30]
[408224927,1773263456415,-200.0,0.00044,11]
[408224928,1773263456425,-150.0,0.00044,120]
[408224929,1773263456435,-379.88612013,0.00044265,120]
[408224930,1773263456446,-150.0,0.00044281,120]
[408224931,1773263456457,-1044.5,0.00044291,120]
[408224932,1773263456467,-2807.0,0.00044352,16]
[408224933,1773263456615,-374.66,0.00044384,120]
[408224934,1773263456625,-155.0,0.000444,120]
[408224935,1773263456634,-150.0,0.000445,120]
[408224936,1773263456643,-3200.0,0.000446,20]
[408224937,1773263456653,-1368.7458975,0.00044609,94]
[408224938,1773263456662,-200.0,0.00044836,120]
[408224939,1773263456671,-1044.5,0.00044865,120]
[408224940,1773263456680,-5115.70494061,0.00045,7]
[408224941,1773263456689,-154.0,0.00045,120]
[408224942,1773263456698,-150.0,0.00045,120]
[408224943,1773263456707,-156.690195,0.00045,120]
[408224944,1773263456716,-156.690195,0.00045,120]
[408224945,1773263456725,-156.690195,0.00045,120]
[408224946,1773263456734,-156.690202,0.00045,120]
[408224947,1773263456743,-1586.748894,0.00045,28]
[408224948,1773263456752,-1586.748894,0.00045,28]
[408224949,1773263456762,-1586.748894,0.00045,28]
[408224950,1773263456771,-1586.748902,0.00045,28]
[408224951,1773263456780,-426.51,0.00045,30]
[408224952,1773263456789,-272.17,0.00045,30]
[408224953,1773263456798,-150.0,0.00045,30]
[408224954,1773263456807,-150.0,0.00045,30]
[408224955,1773263456817,-150.0,0.00045,30]
[408224956,1773263456826,-150.0,0.00045,30]
[408224957,1773263456835,-150.0,0.00045,30]
[408224958,1773263456844,-150.0,0.00045,30]
[408224959,1773263456853,-150.0,0.00045,30]
[408224960,1773263456862,-150.0,0.00045,30]
[408224961,1773263456871,-150.0,0.00045,30]
[408224962,1773263456880,-150.0,0.00045,30]
[408224963,1773263456889,-150.0,0.00045,30]
[408224964,1773263456898,-150.0,0.00045,30]
[408224965,1773263456907,-150.0,0.00045,30]
[408224966,1773263456916,-301.13939811,0.00045011,120]
[408224967,1773263456925,-151.0,0.00045053,120]
[408224968,1773263456935,-2807.0,0.00045078,16]
[408224969,1773263456944,-150.0,0.00045083,30]
[408224970,1773263456953,-986.218308,0.00045115,2]
[408224971,1773263456961,-150.0,0.00045167,30]
[408224972,1773263456970,-150.0,0.00045172,30]
[408224973,1773263456979,-150.0,0.00045192,30]
[408224974,1773263456988,-397.947038,0.00045205,120]
[408224975,1773263456998,-397.947038,0.00045205,120]
[408224976,1773263457007,-397.947038,0.00045205,120]
[408224977,1773263457016,-397.947038,0.00045205,120]
[408224978,1773263457025,-397.947038,0.00045205,120]
[408224979,1773263457035,-397.947038,0.00045205,120]
[408224980,1773263457044,-397.947038,0.00045205,120]
[408224981,1773263457053,-397.947038,0.00045205,120]
[408224982,1773263457062,-397.947038,0.00045205,120]
[408224983,1773263457071,-397.947038,0.00045205,120]
[408224984,1773263457080,-397.947038,0.00045205,120]
[408224985,1773263457089,-397.947038,0.00045205,120]
[408224986,1773263457099,-397.947038,0.00045205,120]
[408224987,1773263457108,-397.947038,0.00045205,120]
[408224988,1773263457117,-397.947038,0.00045205,120]
[408224989,1773263457126,-397.947038,0.00045205,120]
[408224990,1773263457135,-397.947038,0.00045205,120]
[408224991,1773263457144,-397.947038,0.00045205,120]
[408224992,1773263457153,-397.947038,0.00045205,120]
[408224993,1773263457164,-397.94703,0.00045205,120]
[408224994,1773263457175,-151.0,0.00045205,120]
[408224995,1773263457184,-151.0,0.00045205,120]
[408224996,1773263457193,-151.0,0.00045205,120]
[408224997,1773263457202,-171.289408,0.00045205,120]
[408224998,1773263457213,-151.0,0.00045205,120]
[408224999,1773263457222,-151.0,0.00045205,120]
[408225000,1773263457231,-229.012841,0.00045205,120]
[408225001,1773263457242,-524.606221,0.00045205,120]
[408225002,1773263457251,-524.606221,0.00045205,120]
[408225003,1773263457260,-524.606221,0.00045205,120]
[408225004,1773263457269,-524.606221,0.00045205,120]
[408225005,1773263457278,-524.606221,0.00045205,120]
[408225006,1773263457286,-524.606221,0.00045205,120]
[408225007,1773263457296,-524.606221,0.00045205,120]
[408225008,1773263457305,-524.606221,0.00045205,120]
[408225009,1773263457313,-524.606221,0.00045205,120]
[408225010,1773263457322,-524.606221,0.00045205,120]
[408225011,1773263457331,-524.606221,0.00045205,120]
[408225012,1773263457340,-524.606221,0.00045205,120]
[408225013,1773263457349,-524.606221,0.00045205,120]
[408225014,1773263457358,-524.606221,0.00045205,120]
[408225015,1773263457367,-524.606221,0.00045205,120]
[408225016,1773263457376,-524.606221,0.00045205,120]
[408225017,1773263457384,-524.606221,0.00045205,120]
[408225018,1773263457393,-524.606221,0.00045205,120]
[408225019,1773263457401,-524.606221,0.00045205,120]
[408225020,1773263457410,-524.606225,0.00045205,120]
[408225021,1773263457419,-254.130547,0.00045205,120]
[408225022,1773263457428,-267.068042,0.00045205,120]
[408225023,1773263457437,-267.068042,0.00045205,120]
[408225024,1773263457446,-267.068042,0.00045205,120]
[408225025,1773263457456,-267.068042,0.00045205,120]
[408225026,1773263457465,-267.068042,0.00045205,120]
[408225027,1773263457475,-267.068042,0.00045205,120]
[408225028,1773263457484,-267.068042,0.00045205,120]
[408225029,1773263457493,-267.068042,0.00045205,120]
[408225030,1773263457501,-267.068042,0.00045205,120]
[408225031,1773263457510,-267.068042,0.00045205,120]
[408225032,1773263457520,-267.068042,0.00045205,120]
[408225033,1773263457529,-267.068042,0.00045205,120]
[408225034,1773263457538,-267.068042,0.00045205,120]
[408225035,1773263457547,-267.068042,0.00045205,120]
[408225036,1773263457556,-267.068042,0.00045205,120]
[408225037,1773263457565,-267.068042,0.00045205,120]
[408225038,1773263457574,-196.636787,0.00045205,120]
[408225039,1773263457583,-150.0,0.00045227,30]
[408225040,1773263457592,-150.0,0.00045238,30]
[408225041,1773263457601,-150.0,0.0004525,30]
[408225042,1773263457610,-150.0,0.00045278,30]
[408225043,1773263457619,-150.0,0.00045333,30]
[408225044,1773263457629,-150.0,0.00045345,30]
[408225045,1773263457638,-509.0,0.0004535,28]
[408225046,1773263457647,-150.0,0.00045385,30]
[408225047,1773263457656,-469.0,0.00045398,16]
[408225048,1773263457666,-2807.0,0.00045398,16]
[408225049,1773263457675,-150.0,0.00045417,30]
[408225050,1773263457685,-1044.5,0.00045438,120]
[408225051,1773263457694,-150.0,0.00045455,30]
[408225052,1773263457703,-150.0,0.00045455,30]
[408225053,1773263457712,-150.0,0.00045476,30]
[408225054,1773263457722,-249.44704722,0.000455,120]
[408225055,1773263457735,-150.0,0.000455,30]
[408225056,1773263457744,-150.0,0.00045517,30]
[408225057,1773263457753,-1705.29776055,0.00045531,2]
[408225058,1773263457762,-831.51979763,0.00045554,2]
[408225059,1773263457771,-150.0,0.00045556,30]
[408225060,1773263457780,-150.0,0.00045556,30]
[408225061,1773263457790,-150.0,0.00045577,30]
[408225062,1773263457799,-150.0,0.00045583,30]
[408225063,1773263457807,-150.0,0.00045625,30]
[408225064,1773263457816,-150.0,0.00045667,30]
[408225065,1773263457825,-150.0,0.00045682,30]
[408225066,1773263457834,-150.0,0.0004569,30]
[408225067,1773263457843,-150.0,0.00045714,30]
[408225068,1773263457852,-150.0,0.0004575,30]
[408225069,1773263457861,-150.0,0.00045769,30]
[408225070,1773263457870,-150.0,0.00045833,30]
[408225071,1773263457878,-150.0,0.00045833,30]
[408225072,1773263457887,-150.0,0.00045862,30]
[408225073,1773263457897,-3777.84641708,0.00045883,120]
[408225074,1773263457907,-1100.0,0.00045883,16]
[408225075,1773263457916,-155.0,0.000459,120]
[408225076,1773263457926,-150.0,0.00045909,30]
[408225077,1773263457937,-150.0,0.00045909,30]
[408225078,1773263457948,-150.0,0.00045917,30]
[408225079,1773263457957,-150.0,0.00045952,30]
[408225080,1773263457966,-150.0,0.00045962,30]
[408225081,1773263457975,-150.0,0.00046,30]
[408225082,1773263457984,-150.0,0.00046,30]
[408225083,1773263457992,-150.0,0.00046,30]
[408225084,1773263458002,-1044.5,0.00046012,120]
[408225085,1773263458011,-2461.0,0.00046023,2]
[408225086,1773263458020,-150.0,0.00046034,30]
[408225087,1773263458031,-150.0,0.00046083,30]
[408225088,1773263458040,-150.0,0.00046111,30]
[408225089,1773263458050,-150.0,0.00046111,30]
[408225090,1773263458059,-150.0,0.00046136,30]
[408225091,1773263458069,-150.0,0.00046154,30]
[408225092,1773263458078,-150.0,0.00046167,30]
[408225093,1773263458087,-150.0,0.0004619,30]
[408225094,1773263458096,-150.0,0.00046207,30]
[408225095,1773263458105,-150.0,0.0004625,30]
[408225096,1773263458115,-150.0,0.0004625,30]
[408225097,1773263458124,-150.0,0.00046333,30]
[408225098,1773263458133,-150.0,0.00046346,30]
[408225099,1773263458143,-150.0,0.00046364,30]
[408225100,1773263458153,-150.0,0.00046364,30]
[408225101,1773263458163,-150.0,0.00046379,30]
[408225102,1773263458175,-150.0,0.00046389,30]
[408225103,1773263458185,-150.0,0.00046417,30]
[408225104,1773263458195,-2807.0,0.00046428,16]
[408225105,1773263458207,-848.0,0.00046428,16]
[408225106,1773263458217,-150.0,0.00046429,30]
[408225107,1773263458226,-886.28477892,0.00046482,120]
[408225108,1773263458235,-150.0,0.00046495,120]
[408225109,1773263458244,-150.0,0.000465,30]
[408225110,1773263458253,-204.203007,0.00046504,18]
[408225111,1773263458263,-204.20300695,0.00046504,18]
[408225112,1773263458273,-204.20300695,0.00046504,18]
[408225113,1773263458282,-204.20300695,0.00046504,18]
[408225114,1773263458292,-204.20300695,0.00046504,18]
[408225115,1773263458301,-204.20300695,0.00046504,18]
[408225116,1773263458311,-204.20300695,0.00046504,18]
[408225117,1773263458320,-204.20300695,0.00046504,18]
[408225118,1773263458330,-204.20300695,0.00046504,18]
[408225119,1773263458339,-204.20300695,0.00046504,18]
[408225120,1773263458348,-204.20300695,0.00046504,18]
[408225121,1773263458357,-204.20300695,0.00046504,18]
[408225122,1773263458367,-204.20300695,0.00046504,18]
[408225123,1773263458375,-150.0,0.00046538,30]
[408225124,1773263458386,-150.0,0.00046552,30]
[408225125,1773263458395,-427.3,0.00046575,2]
[408225126,1773263458405,-427.3,0.00046575,2]
[408225127,1773263458415,-427.3,0.00046575,2]
[408225128,1773263458424,-427.3,0.00046575,2]
[408225129,1773263458433,-427.3,0.00046575,2]
[408225130,1773263458443,-427.3,0.00046575,2]
[408225131,1773263458452,-427.3,0.00046575,2]
[408225132,1773263458461,-427.3,0.00046575,2]
[408225133,1773263458470,-427.3,0.00046575,2]
[408225134,1773263458479,-427.3,0.00046575,2]
[408225135,1773263458489,-427.3,0.00046575,2]
[408225136,1773263458498,-427.3,0.00046575,2]
[408225137,1773263458507,-427.3,0.00046575,2]
[408225138,1773263458516,-427.3,0.00046575,2]
[408225139,1773263458525,-427.3,0.00046575,2]
[408225140,1773263458536,-427.3,0.00046575,2]
[408225141,1773263458545,-427.3,0.00046575,2]
[408225142,1773263458554,-427.3,0.00046575,2]
[408225143,1773263458563,-427.3,0.00046575,2]
[408225144,1773263458572,-427.3,0.00046575,2]
[408225145,1773263458581,-427.3,0.00046575,2]
[408225146,1773263458591,-427.3,0.00046575,2]
[408225147,1773263458601,-427.3,0.00046575,2]
[408225148,1773263458611,-427.44878265,0.00046575,2]
[408225149,1773263458620,-500.0,0.00046575,2]
[408225150,1773263458629,-500.0,0.00046575,2]
[408225151,1773263458639,-500.0,0.00046575,2]
[408225152,1773263458648,-500.0,0.00046575,2]
[408225153,1773263458657,-500.0,0.00046575,2]
[408225154,1773263458666,-500.0,0.00046575,2]
[408225155,1773263458675,-500.0,0.00046575,2]
[408225156,1773263458684,-500.0,0.00046575,2]
[408225157,1773263458693,-500.0,0.00046575,2]
[408225158,1773263458701,-500.0,0.00046575,2]
[408225159,1773263458710,-500.0,0.00046575,2]
[408225160,1773263458719,-500.0,0.00046575,2]
[408225161,1773263458729,-500.0,0.00046575,2]
[408225162,1773263458739,-500.0,0.00046575,2]
[408225163,1773263458748,-500.0,0.00046575,2]
[408225164,1773263458757,-500.0,0.00046575,2]
[408225165,1773263458766,-500.0,0.00046575,2]
[408225166,1773263458775,-500.0,0.00046575,2]
[408225167,1773263458784,-500.0,0.00046575,2]
[408225168,1773263458793,-500.0,0.00046575,2]
[408225169,1773263458801,-500.0,0.00046575,2]
[408225170,1773263458810,-257.60948774,0.00046575,2]
[408225171,1773263458820,-418.21219991,0.00046575,2]
[408225172,1773263458829,-500.0,0.00046575,2]
[408225173,1773263458839,-500.0,0.00046575,2]
[408225174,1773263458848,-500.0,0.00046575,2]
[408225175,1773263458857,-500.0,0.00046575,2]
[408225176,1773263458866,-500.0,0.00046575,2]
[408225177,1773263458875,-500.0,0.00046575,2]
[408225178,1773263458883,-500.0,0.00046575,2]
[408225179,1773263458892,-500.0,0.00046575,2]
[408225180,1773263458901,-500.0,0.00046575,2]
[408225181,1773263458910,-500.0,0.00046575,2]
[408225182,1773263458919,-500.0,0.00046575,2]
[408225183,1773263458928,-500.0,0.00046575,2]
[408225184,1773263458936,-500.0,0.00046575,2]
[408225185,1773263458945,-500.0,0.00046575,2]
[408225186,1773263458955,-500.0,0.00046575,2]
[408225187,1773263458965,-355.76479115,0.00046575,2]
[408225188,1773263458975,-400.02,0.00046575,120]
[408225189,1773263458984,-400.0,0.00046575,120]
[408225190,1773263458995,-150.0,0.00046583,30]
[408225191,1773263459004,-1044.5,0.00046585,120]
[408225192,1773263459014,-150.0,0.00046591,30]
[408225193,1773263459023,-163.13715558,0.00046658,30]
[408225194,1773263459032,-150.0,0.00046667,30]
[408225195,1773263459041,-150.0,0.00046667,30]
[408225196,1773263459050,-150.0,0.00046667,30]
[408225197,1773263459060,-150.0,0.00046667,30]
[408225198,1773263459070,-154.0,0.000467,120]
[408225199,1773263459079,-150.0,0.00046724,30]
[408225200,1773263459088,-150.0,0.00046731,30]
[408225201,1773263459097,-150.0,0.0004675,30]
[408225202,1773263459106,-219.956816,0.00046751,120]
[408225203,1773263459115,-618.41440475,0.000468,120]
[408225204,1773263459124,-150.0,0.00046818,30]
[408225205,1773263459133,-150.0,0.00046818,30]
[408225206,1773263459142,-150.0,0.00046833,30]
[408225207,1773263459152,-150.0,0.00046875,30]
[408225208,1773263459161,-150.0,0.00046897,30]
[408225209,1773263459174,-150.0,0.00046905,30]
[408225210,1773263459183,-150.0,0.00046917,30]
[408225211,1773263459192,-150.0,0.00046923,30]
[408225212,1773263459201,-150.0,0.00046944,30]
[408225213,1773263459211,-150.0,0.00046976,120]
[408225214,1773263459221,-150.0,0.00046976,120]
[408225215,1773263459233,-1199.3312424,0.00047,120]
[408225216,1773263459242,-220.05179201,0.00047,120]
[408225217,1773263459251,-150.0,0.00047,30]
[408225218,1773263459261,-150.0,0.00047,30]
[408225219,1773263459270,-150.0,0.00047,30]
[408225220,1773263459278,-150.0,0.00047005,120]
[408225221,1773263459288,-150.0,0.00047005,120]
[408225222,1773263459297,-150.0,0.00047045,30]
[408225223,1773263459306,-150.0,0.00047069,30]
[408225224,1773263459316,-2961.0,0.00047082,16]
[408225225,1773263459325,-150.0,0.00047083,30]
[408225226,1773263459334,-150.0,0.00047115,30]
[408225227,1773263459344,-150.0,0.00047143,30]
[408225228,1773263459354,-163.13715558,0.00047151,30]
[408225229,1773263459363,-1044.5,0.00047159,120]
[408225230,1773263459372,-150.0,0.00047167,30]
[408225231,1773263459381,-150.0,0.00047222,30]
[408225232,1773263459390,-150.0,0.00047222,30]
[408225233,1773263459399,-150.0,0.00047241,30]
[408225234,1773263459408,-426.51,0.0004725,30]
[408225235,1773263459417,-272.17,0.0004725,30]
[408225236,1773263459426,-150.0,0.0004725,30]
[408225237,1773263459435,-150.0,0.00047273,30]
[408225238,1773263459444,-150.0,0.00047273,30]
[408225239,1773263459453,-1000.0,0.00047303,14]
[408225240,1773263459462,-150.0,0.00047308,30]
[408225241,1773263459471,-150.0,0.00047333,30]
[408225242,1773263459480,-1000.0,0.00047341,14]
[408225243,1773263459490,-150.0,0.00047381,30]
[408225244,1773263459500,-155.0,0.000474,120]
[408225245,1773263459511,-150.0,0.000474,70]
[408225246,1773263459521,-150.0,0.00047405,60]
[408225247,1773263459530,-150.0,0.00047405,60]
[408225248,1773263459539,-225.8749323,0.00047405,60]
[408225249,1773263459548,-150.0,0.00047414,30]
[408225250,1773263459557,-150.0,0.00047417,30]
[408225251,1773263459566,-1101.93871343,0.00047458,3]
[408225252,1773263459576,-400.0,0.0004747,3]
[408225253,1773263459585,-400.0,0.0004747,3]
[408225254,1773263459595,-541.01514806,0.0004747,3]